fUST/lending_fUST_20240605
["ID","MTS","AMOUNT","RATE_DAILY","PERIOD"]
[328557359,1717533229256,3628.02546386,9.999e-05,2]
[328557361,1717533427612,2027.14369368,0.00029891,120]
[328557368,1717534027130,-15298.32900673,0.00017484,2]
[328557369,1717534147097,-25626.70286634,0.00017479,2]
[328557370,1717534161129,-2048.59731326,0.0001739,2]
[328557371,1717534161149,-3885.72069474,0.00017478,2]
[328557372,1717534162124,-6647.31104427,0.00017478,2]
[328557373,1717534162144,-10252.57543341,0.00017479,2]
[328557374,1717534166209,-6187.2992402,0.00017479,2]
[328557375,1717534166228,-5926.088283,0.00017481,2]
[328557376,1717534166248,-252.61398574,0.0001749,2]
[328557377,1717534166276,-154.9690062,0.00017589,2]
[328557378,1717534166295,-156.73078525,0.00017591,2]
[328557379,1717534166316,-194.67210298,0.00017593,2]
[328557380,1717534166337,-253.48708169,0.00017595,2]
[328557381,1717534166356,-1973.30524404,0.000176,2]
[328557382,1717534166375,-2048.59731325,0.00018565,2]
[328557383,1717534166394,-302.58807824,0.00018998,2]
[328557384,1717534166413,-162.93661136,0.00019,2]
[328557385,1717534166433,-7365.6072277,0.00019,2]
[328557386,1717534166455,-500.0,0.00019178,2]
[328557387,1717534166477,-500.0,0.00019178,2]
[328557388,1717534166497,-500.0,0.00019178,2]
[328557389,1717534166519,-500.0,0.00019178,2]
[328557390,1717534166540,-500.0,0.00019178,2]
[328557391,1717534166562,-500.0,0.00019178,2]
[328557392,1717534166583,-500.0,0.00019178,2]
[328557393,1717534166716,-500.0,0.00019178,2]
[328557394,1717534166739,-500.0,0.00019178,2]
[328557395,1717534166760,-500.0,0.00019178,2]
[328557396,1717534166782,-500.0,0.00019178,2]
[328557397,1717534166802,-500.0,0.00019178,2]
[328557398,1717534166824,-500.0,0.00019178,2]
[328557399,1717534166846,-500.0,0.00019178,2]
[328557400,1717534166866,-324.54533529,0.00019178,2]
[328557401,1717534166887,-500.0,0.00019178,2]
[328557402,1717534166908,-500.0,0.00019178,2]
[328557403,1717534166929,-500.0,0.00019178,2]
[328557404,1717534166951,-500.0,0.00019178,2]
[328557405,1717534166971,-168.352586,0.00019178,2]
[328557406,1717534166994,-2048.59731325,0.00019741,2]
[328557407,1717534215571,500.0,0.00019178,2]
[328557408,1717534220111,3562.43181888,0.0002011,11]
[328557411,1717534231915,-7365.6072277,0.00019996,2]
[328557413,1717534231924,-163.634717,0.00019997,2]
[328557414,1717534231934,-10165.87952335,0.00019997,2]
[328557415,1717534231943,-188.30597511,0.00019997,2]
[328557416,1717534231951,-42009.85148102,0.00019997,2]
[328557417,1717534231960,-41689.75764994,0.00019999,2]
[328557418,1717534231969,-1352.47027716,0.0002,2]
[328557419,1717534231978,-847.47225448,0.00020547,2]
[328557420,1717534231986,-664.581806,0.00020639,2]
[328557421,1717534231995,-2048.59731325,0.00020916,2]
[328557422,1717534232004,-498.0,0.00021504,2]
[328557423,1717534232012,-152.695,0.00021504,2]
[328557424,1717534232021,-205.0679425,0.00021678,2]
[328557425,1717534232030,-2261.80136026,0.00021893,2]
[328557426,1717534232039,-942.70067887,0.00021914,2]
[328557427,1717534232048,-437.93380547,0.00021914,2]
[328557428,1717534232056,-182.28451258,0.00021914,2]
[328557429,1717534232066,-418.52818871,0.00021914,2]
[328557430,1717534232076,-307.10173115,0.00021914,2]
[328557431,1717534232088,-176.12751548,0.00021914,2]
[328557433,1717534232097,-469.19358266,0.00021914,2]
[328557435,1717534232107,-500.0,0.00021914,2]
[328557437,1717534232116,-500.0,0.00021914,2]
[328557439,1717534232126,-409.1024148,0.00021914,2]
[328557441,1717534232138,-222.09268357,0.00021914,2]
[328557443,1717534232147,-181.72717521,0.00021914,2]
[328557445,1717534232156,-503.51008851,0.00021914,2]
[328557447,1717534232165,-500.0,0.00021914,2]
[328557449,1717534232175,-348.9874565,0.00021914,2]
[328557461,1717534236344,573.02007315,0.00019898,2]
[328557490,1717534237714,-500.0,0.00019998,2]
[328557492,1717534237729,-480.50503725,0.00019998,2]
[328557493,1717534237738,-151.0125435,0.00021914,2]
[328557496,1717534237748,-500.0,0.00021914,2]
[328557497,1717534237758,-500.0,0.00021914,2]
[328557499,1717534237767,-500.0,0.00021914,2]
[328557501,1717534237777,-605.15064834,0.00021915,2]
[328557503,1717534237786,-156.97484295,0.00021915,2]
[328557504,1717534237795,-427.25130369,0.00021915,2]
[328557505,1717534237804,-204.37510443,0.00021915,2]
[328557506,1717534237817,-1507.30240698,0.00021915,2]
[328557507,1717534237829,-693.8181521,0.00021915,2]
[328557508,1717534237838,-315.39764864,0.00021915,2]
[328557509,1717534237851,-1284.4033242,0.00021915,2]
[328557510,1717534237863,-1868.64063357,0.00021915,2]
[328557511,1717534237892,-17665.85795713,0.00021915,2]
[328557512,1717534237902,-921.85323911,0.00021915,2]
[328557513,1717534237913,-201.56551538,0.00021915,2]
[328557514,1717534237922,-9575.16966712,0.00021915,2]
[328557515,1717534237931,-155.44196189,0.00021915,2]
[328557516,1717534237941,-192.98571482,0.00021915,2]
[328557517,1717534237951,-530.520944,0.00021915,2]
[328557518,1717534237961,-551.40633265,0.00021915,2]
[328557519,1717534237970,-155.70818563,0.00021915,2]
[328557520,1717534237981,-155.22457048,0.00021915,2]
[328557521,1717534237992,-500.0,0.00021917,2]
[328557522,1717534238002,-500.0,0.00021917,2]
[328557523,1717534238011,-500.0,0.00021917,2]
[328557524,1717534238021,-500.0,0.00021917,2]
[328557525,1717534238031,-500.0,0.00021917,2]
[328557526,1717534238041,-154.86823968,0.00021917,2]
[328557527,1717534238050,-155.00465014,0.00021917,2]
[328557528,1717534238060,-500.0,0.00021917,2]
[328557529,1717534238069,-500.0,0.00021917,2]
[328557530,1717534238079,-500.0,0.00021917,2]
[328557531,1717534238089,-500.0,0.00021917,2]
[328557532,1717534238098,-356.56625838,0.00021917,2]
[328557533,1717534238107,-500.0,0.00021917,2]
[328557534,1717534238118,-500.0,0.00021917,2]
[328557535,1717534238127,-312.09,0.00021917,2]
[328557536,1717534238137,-500.0,0.00021917,2]
[328557537,1717534238147,-500.0,0.00021917,2]
[328557538,1717534238156,-500.0,0.00021917,2]
[328557539,1717534238165,-567.55640933,0.00021917,2]
[328557540,1717534238174,-500.0,0.00021917,2]
[328557541,1717534238183,-500.0,0.00021917,2]
[328557542,1717534238192,-500.0,0.00021917,2]
[328557543,1717534238333,-500.0,0.00021917,2]
[328557544,1717534238343,-500.0,0.00021917,2]
[328557545,1717534238352,-500.0,0.00021917,2]
[328557546,1717534238364,-500.0,0.00021917,2]
[328557547,1717534238374,-413.44391044,0.00021917,2]
[328557548,1717534238382,-500.0,0.00021917,2]
[328557549,1717534238391,-500.0,0.00021917,2]
[328557550,1717534238400,-515.72,0.00021917,2]
[328557551,1717534238409,-713.89,0.00021917,2]
[328557552,1717534238418,-324.15,0.00021917,2]
[328557553,1717534238427,-500.0,0.00021917,2]
[328557554,1717534238436,-500.0,0.00021917,2]
[328557555,1717534238445,-500.0,0.00021917,2]
[328557556,1717534238454,-639.68,0.00021917,2]
[328557557,1717534238463,-2826.58,0.00021917,2]
[328557558,1717534238474,-500.0,0.00021917,2]
[328557559,1717534238483,-500.0,0.00021917,2]
[328557560,1717534238492,-369.43,0.00021917,2]
[328557561,1717534238501,-500.0,0.00021917,2]
[328557562,1717534238510,-626.15,0.00021917,2]
[328557563,1717534238522,-519.34,0.00021917,2]
[328557564,1717534238532,-500.0,0.00021917,2]
[328557565,1717534238541,-500.0,0.00021917,2]
[328557566,1717534238552,-1049.55,0.00021917,2]
[328557567,1717534238563,-757.82,0.00021917,2]
[328557568,1717534238573,-500.0,0.00021917,2]
[328557569,1717534238583,-500.0,0.00021917,2]
[328557570,1717534238595,-970.52,0.00021917,2]
[328557571,1717534238605,-283.35,0.00021917,2]
[328557572,1717534238616,-500.0,0.00021917,2]
[328557573,1717534238625,-500.0,0.00021917,2]
[328557574,1717534238634,-500.0,0.00021917,2]
[328557575,1717534238643,-2254.05,0.00021917,2]
[328557576,1717534238655,-1193.5,0.00021917,2]
[328557577,1717534238664,-500.0,0.00021917,2]
[328557578,1717534238674,-500.0,0.00021917,2]
[328557579,1717534238683,-500.0,0.00021917,2]
[328557580,1717534238693,-500.0,0.00021917,2]
[328557581,1717534238702,-3037.17,0.00021917,2]
[328557582,1717534238712,-610.64,0.00021917,2]
[328557583,1717534238721,-3613.1,0.00021917,2]
[328557584,1717534238731,-1184.62,0.00021917,2]
[328557585,1717534238740,-500.0,0.00021917,2]
[328557586,1717534238750,-500.0,0.00021917,2]
[328557587,1717534238760,-500.0,0.00021917,2]
[328557588,1717534238769,-500.0,0.00021917,2]
[328557589,1717534238779,-166.666666,0.00021918,2]
[328557590,1717534238788,-223.0,0.00022,2]
[328557591,1717534238798,-2048.59731325,0.00022091,2]
[328557592,1717534238807,-624.04205326,0.000221,2]
[328557593,1717534238816,-3000.0,0.000221,2]
[328557594,1717534238826,-3000.0,0.0002211,2]
[328557595,1717534238835,-3000.0,0.0002212,2]
[328557596,1717534238844,-278.62154261,0.00022121,2]
[328557597,1717534238854,-3000.0,0.0002213,2]
[328557598,1717534238864,-3000.0,0.0002214,2]
[328557599,1717534238873,-3000.0,0.0002215,2]
[328557600,1717534238882,-3000.0,0.0002216,2]
[328557601,1717534238891,-3000.0,0.0002217,2]
[328557602,1717534238900,-3000.0,0.0002218,2]
[328557603,1717534238910,-3000.0,0.0002219,2]
[328557604,1717534238919,-16553.71775036,0.00022191,7]
[328557605,1717534238928,-500.0,0.00022191,2]
[328557606,1717534238938,-500.0,0.00022191,2]
[328557607,1717534238947,-500.0,0.00022191,2]
[328557608,1717534238957,-500.0,0.00022191,2]
[328557609,1717534238966,-500.0,0.00022191,2]
[328557610,1717534238976,-190.1915359,0.00022191,2]
[328557617,1717534240986,-309.8084641,0.00022191,2]
[328557618,1717534240996,-500.0,0.00022191,2]
[328557619,1717534241005,-500.0,0.00022191,2]
[328557620,1717534241015,-500.0,0.00022191,2]
[328557621,1717534241024,-500.0,0.00022191,2]
[328557622,1717534241033,-500.0,0.00022191,2]
[328557623,1717534241043,-500.0,0.00022191,2]
[328557624,1717534241052,-500.0,0.00022191,2]
[328557625,1717534241062,-500.0,0.00022191,2]
[328557626,1717534241070,-515.72,0.00022191,2]
[328557627,1717534241079,-713.89,0.00022191,2]
[328557628,1717534241089,-285.31096871,0.00022191,2]
[328557629,1717534241098,-500.0,0.00022191,2]
[328557630,1717534241107,-291.91,0.00022191,2]
[328557631,1717534241116,-639.68,0.00022191,2]
[328557632,1717534241125,-2826.58,0.00022191,2]
[328557633,1717534241134,-500.0,0.00022191,2]
[328557634,1717534241143,-500.0,0.00022191,2]
[328557635,1717534241152,-412.29,0.00022191,2]
[328557636,1717534241162,-626.15,0.00022191,2]
[328557637,1717534241171,-519.34,0.00022191,2]
[328557638,1717534241181,-500.0,0.00022191,2]
[328557639,1717534241190,-500.0,0.00022191,2]
[328557640,1717534241200,-1049.55,0.00022191,2]
[328557641,1717534241209,-757.82,0.00022191,2]
[328557642,1717534241218,-500.0,0.00022191,2]
[328557643,1717534241227,-500.0,0.00022191,2]
[328557644,1717534241237,-970.52,0.00022191,2]
[328557645,1717534241246,-500.0,0.00022191,2]
[328557646,1717534241255,-500.0,0.00022191,2]
[328557647,1717534241264,-500.0,0.00022191,2]
[328557648,1717534241274,-2254.05,0.00022191,2]
[328557649,1717534241285,-1193.5,0.00022191,2]
[328557650,1717534241294,-500.0,0.00022191,2]
[328557651,1717534241303,-500.0,0.00022191,2]
[328557652,1717534241313,-500.0,0.00022191,2]
[328557653,1717534241323,-500.0,0.00022191,2]
[328557654,1717534241332,-3037.17,0.00022191,2]
[328557655,1717534241343,-610.64,0.00022191,2]
[328557656,1717534241352,-1803.28322841,0.00022191,2]
[328557657,1717534241371,-1809.81677159,0.00022191,2]
[328557658,1717534241380,-1184.62,0.00022191,2]
[328557659,1717534241388,-500.0,0.00022191,2]
[328557660,1717534241398,-500.0,0.00022191,2]
[328557661,1717534241406,-500.0,0.00022191,2]
[328557662,1717534241415,-500.0,0.00022191,2]
[328557663,1717534241425,-223.0,0.00022192,2]
[328557664,1717534241434,-1306.22449778,0.000222,2]
[328557665,1717534241446,-1432.28524259,0.000222,2]
[328557666,1717534241457,-261.49025963,0.000222,2]
[328557667,1717534241467,-1621.043132,0.000222,2]
[328557668,1717534241476,-1181.86030876,0.0002221,2]
[328557669,1717534241487,-1818.13969124,0.0002221,2]
[328557670,1717534241496,-3000.0,0.0002222,2]
[328557671,1717534241505,-3000.0,0.0002223,2]
[328557672,1717534241514,-3000.0,0.0002224,2]
[328557673,1717534241524,-3000.0,0.0002225,2]
[328557674,1717534241533,-3000.0,0.0002226,2]
[328557675,1717534241542,-3000.0,0.0002227,2]
[328557676,1717534241551,-3000.0,0.0002228,2]
[328557677,1717534241561,-3000.0,0.0002229,2]
[328557678,1717534241570,-3000.0,0.000223,2]
[328557679,1717534241579,-2541.75226968,0.0002231,2]
[328557680,1717534241590,-458.24773032,0.0002231,2]
[328557681,1717534241599,-3000.0,0.0002232,2]
[328557682,1717534241609,-3000.0,0.0002233,2]
[328557683,1717534241620,-3000.0,0.0002234,2]
[328557684,1717534241629,-3000.0,0.0002235,2]
[328557685,1717534241638,-3000.0,0.0002236,2]
[328557686,1717534241648,-3361.1267752,0.00022365,2]
[328557687,1717534241658,-620.03727742,0.00022369,2]
[328557688,1717534241667,-3000.0,0.0002237,2]
[328557689,1717534241676,-3000.0,0.0002238,2]
[328557690,1717534241686,-3000.0,0.0002239,2]
[328557691,1717534241695,-3000.0,0.000224,2]
[328557692,1717534241705,-3000.0,0.0002241,2]
[328557693,1717534241714,-3367.999338,0.0002242,2]
[328557694,1717534241723,-166.666666,0.00022431,2]
[328557695,1717534241733,-500.0,0.00022465,2]
[328557696,1717534241742,-500.0,0.00022465,2]
[328557697,1717534241752,-500.0,0.00022465,2]
[328557698,1717534241761,-500.0,0.00022465,2]
[328557699,1717534241771,-500.0,0.00022465,2]
[328557700,1717534241780,-500.0,0.00022465,2]
[328557701,1717534241790,-500.0,0.00022465,2]
[328557702,1717534241799,-500.0,0.00022465,2]
[328557703,1717534241808,-500.0,0.00022465,2]
[328557704,1717534241818,-500.0,0.00022465,2]
[328557705,1717534241827,-615.83634416,0.00022465,2]
[328557706,1717534241836,-500.0,0.00022465,2]
[328557707,1717534241845,-500.0,0.00022465,2]
[328557708,1717534241854,-500.0,0.00022465,2]
[328557709,1717534241863,-515.72,0.00022465,2]
[328557710,1717534241873,-713.89,0.00022465,2]
[328557711,1717534241883,-500.0,0.00022465,2]
[328557712,1717534241892,-639.68,0.00022465,2]
[328557713,1717534241901,-880.7740051,0.00022465,2]
[328557722,1717534243333,-573.02007309,0.00021119,2]
[328557723,1717534243343,-1945.8059949,0.00022465,2]
[328557724,1717534243352,-500.0,0.00022465,2]
[328557725,1717534243363,-500.0,0.00022465,2]
[328557726,1717534243373,-626.15,0.00022465,2]
[328557727,1717534243382,-519.34,0.00022465,2]
[328557728,1717534243392,-500.0,0.00022465,2]
[328557729,1717534243401,-500.0,0.00022465,2]
[328557730,1717534243411,-1049.55,0.00022465,2]
[328557731,1717534243421,-757.82,0.00022465,2]
[328557732,1717534243430,-500.0,0.00022465,2]
[328557733,1717534243439,-500.0,0.00022465,2]
[328557734,1717534243449,-970.52,0.00022465,2]
[328557735,1717534243459,-592.0,0.00022465,2]
[328557736,1717534243468,-500.0,0.00022465,2]
[328557737,1717534243477,-500.0,0.00022465,2]
[328557738,1717534243487,-380.47408,0.00022465,2]
[328557739,1717534243497,-265.974678,0.00022465,2]
[328557740,1717534243506,-158.630128,0.00022465,2]
[328557741,1717534243516,-380.47408,0.00022465,2]
[328557742,1717534243525,-265.974678,0.00022465,2]
[328557743,1717534243535,-2254.05,0.00022465,2]
[328557744,1717534243544,-78.09791248,0.00022465,2]
[328557745,1717534243556,-72.90208752,0.00022465,2]
[328557746,1717534243566,-151.0,0.00022465,2]
[328557747,1717534243575,-1193.5,0.00022465,2]
[328557748,1717534243584,-230.573001,0.00022465,2]
[328557749,1717534243594,-481.416091,0.00022465,2]
[328557750,1717534243603,-481.416091,0.00022465,2]
[328557751,1717534243613,-500.0,0.00022465,2]
[328557752,1717534243624,-500.0,0.00022465,2]
[328557753,1717534243633,-500.0,0.00022465,2]
[328557754,1717534243643,-151.43591,0.00022465,2]
[328557755,1717534243653,-500.0,0.00022465,2]
[328557756,1717534243663,-272.194801,0.00022465,2]
[328557757,1717534243673,-272.194801,0.00022465,2]
[328557758,1717534243683,-151.0,0.00022465,2]
[328557759,1717534243692,-3037.17,0.00022465,2]
[328557760,1717534243701,-610.64,0.00022465,2]
[328557761,1717534243711,-3613.1,0.00022465,2]
[328557762,1717534243804,-2479.548907,0.00022465,2]
[328557763,1717534243814,-2479.548907,0.00022465,2]
[328557764,1717534243824,-1184.62,0.00022465,2]
[328557765,1717534243834,-500.0,0.00022465,2]
[328557766,1717534243844,-500.0,0.00022465,2]
[328557767,1717534243853,-500.0,0.00022465,2]
[328557768,1717534243862,-500.0,0.00022465,2]
[328557769,1717534243873,-4323.31316457,0.00022508,2]
[328557770,1717534243882,-151.0,0.00022562,5]
[328557771,1717534243891,-1000.0,0.000227,2]
[328557772,1717534243900,-500.0,0.00022739,2]
[328557773,1717534243909,-500.0,0.00022739,2]
[328557774,1717534243919,-500.0,0.00022739,2]
[328557775,1717534243928,-500.0,0.00022739,2]
[328557776,1717534243937,-500.0,0.00022739,2]
[328557777,1717534243946,-500.0,0.00022739,2]
[328557778,1717534243956,-500.0,0.00022739,2]
[328557779,1717534243966,-500.0,0.00022739,2]
[328557780,1717534243976,-500.0,0.00022739,2]
[328557781,1717534243985,-401.86919827,0.00022739,2]
[328557782,1717534243994,-500.0,0.00022739,2]
[328557783,1717534244004,-500.0,0.00022739,2]
[328557784,1717534244013,-500.0,0.00022739,2]
[328557785,1717534244022,-515.72,0.00022739,2]
[328557786,1717534244031,-713.89,0.00022739,2]
[328557787,1717534244041,-500.0,0.00022739,2]
[328557788,1717534244050,-639.68,0.00022739,2]
[328557789,1717534244059,-2826.58,0.00022739,2]
[328557790,1717534244068,-500.0,0.00022739,2]
[328557791,1717534244077,-500.0,0.00022739,2]
[328557792,1717534244087,-626.15,0.00022739,2]
[328557793,1717534244096,-519.34,0.00022739,2]
[328557794,1717534244105,-500.0,0.00022739,2]
[328557795,1717534244115,-500.0,0.00022739,2]
[328557796,1717534244124,-1049.55,0.00022739,2]
[328557797,1717534244133,-757.82,0.00022739,2]
[328557798,1717534244142,-500.0,0.00022739,2]
[328557799,1717534244151,-500.0,0.00022739,2]
[328557800,1717534244161,-970.52,0.00022739,2]
[328557801,1717534244170,-500.0,0.00022739,2]
[328557802,1717534244179,-333.09907981,0.00022739,2]
[328557803,1717534244189,-2254.05,0.00022739,2]
[328557804,1717534244198,-1193.5,0.00022739,2]
[328557805,1717534244207,-540.11581429,0.00022739,2]
[328557806,1717534244217,-500.0,0.00022739,2]
[328557807,1717534244226,-500.0,0.00022739,2]
[328557808,1717534244236,-500.0,0.00022739,2]
[328557809,1717534244245,-3037.17,0.00022739,2]
[328557810,1717534244254,-610.64,0.00022739,2]
[328557811,1717534244263,-3613.1,0.00022739,2]
[328557812,1717534244273,-1184.62,0.00022739,2]
[328557813,1717534244287,-500.0,0.00022739,2]
[328557814,1717534244296,-500.0,0.00022739,2]
[328557815,1717534244306,-500.0,0.00022739,2]
[328557816,1717534244315,-500.0,0.00022739,2]
[328557817,1717534244325,-151.0,0.00022739,2]
[328557818,1717534244334,-166.666666,0.00022944,2]
[328557819,1717534244343,-206.81901429,0.00023,2]
[328557820,1717534244352,-10276.66218228,0.00023,2]
[328557821,1717534244367,-15845.60791107,0.00023,2]
[328557826,1717534307962,154.93802479,9.999e-05,2]
[328557827,1717534310302,154.93802479,9.999e-05,2]
[328557830,1717534335369,154.93802479,9.999e-05,2]
[328557834,1717534467299,1024.23052487,0.0001,5]
[328557872,1717535134154,-310.40607816,0.00019877,2]
[328557873,1717535227093,-2011.75590866,0.00018899,2]
[328557874,1717535227113,-1540.25843793,0.000189,2]
[328557875,1717535227135,-15387.7789139,0.00019879,2]
[328557876,1717535227156,-1454.67178386,0.0002,3]
[328557877,1717535227177,-1353.96157468,0.0002,2]
[328557878,1717535227200,-154.93802479,0.0002,2]
[328557879,1717535227220,-168.600973,0.00020042,2]
[328557880,1717535227241,-498.0,0.00021504,2]
[328557881,1717535227262,-150.0,0.00021504,2]
[328557882,1717535227283,-429.76505487,0.00021717,2]
[328557883,1717535227303,-178.62782479,0.00021817,2]
[328557884,1717535227325,-500.0,0.00021916,2]
[328557885,1717535227348,-500.0,0.00021916,2]
[328557886,1717535227370,-500.0,0.00021916,2]
[328557887,1717535227390,-500.0,0.00021916,2]
[328557888,1717535227412,-500.0,0.00021916,2]
[328557889,1717535227434,-500.0,0.00021916,2]
[328557890,1717535227461,-500.0,0.00021916,2]
[328557891,1717535227482,-500.0,0.00021916,2]
[328557892,1717535227502,-500.0,0.00021916,2]
[328557893,1717535227524,-589.88567679,0.00021916,2]
[328557894,1717535227546,-500.0,0.00021916,2]
[328557895,1717535227569,-500.0,0.00021916,2]
[328557896,1717535227734,-500.0,0.00021916,2]
[328557897,1717535227760,-500.0,0.00021916,2]
[328557898,1717535227780,-500.0,0.00021917,2]
[328557899,1717535227800,-500.0,0.00021917,2]
[328557900,1717535227820,-575.84,0.00021917,2]
[328557901,1717535227842,-538.97,0.00021917,2]
[328557902,1717535227861,-473.9081828,0.00021917,2]
[328557903,1717535227881,-500.0,0.00021917,2]
[328557904,1717535227902,-500.0,0.00021917,2]
[328557905,1717535227922,-500.0,0.00021917,2]
[328557906,1717535227945,-500.0,0.00021917,2]
[328557907,1717535227964,-500.0,0.00021917,2]
[328557908,1717535227984,-647.44,0.00021917,2]
[328557909,1717535228004,-500.0,0.00021917,2]
[328557910,1717535228024,-500.0,0.00021917,2]
[328557911,1717535228043,-500.0,0.00021917,2]
[328557912,1717535228063,-500.0,0.00021917,2]
[328557913,1717535228082,-500.0,0.00021917,2]
[328557914,1717535228102,-500.0,0.00021917,2]
[328557915,1717535228121,-574.49,0.00021917,2]
[328557916,1717535228140,-500.0,0.00021917,2]
[328557917,1717535228160,-500.0,0.00021917,2]
[328557918,1717535228179,-500.0,0.00021917,2]
[328557919,1717535228199,-500.0,0.00021917,2]
[328557920,1717535228219,-500.0,0.00021917,2]
[328557921,1717535228239,-250.0,0.00021917,2]
[328557922,1717535228259,-500.0,0.00021917,2]
[328557923,1717535228279,-500.0,0.00021917,2]
[328557924,1717535228298,-500.0,0.00021917,2]
[328557925,1717535228318,-500.0,0.00021917,2]
[328557926,1717535228338,-500.0,0.00021917,2]
[328557927,1717535228358,-550.94,0.00021917,2]
[328557928,1717535228381,-500.0,0.00021917,2]
[328557929,1717535228402,-500.0,0.00021917,2]
[328557930,1717535228423,-500.0,0.00021917,2]
[328557931,1717535228443,-500.0,0.00021917,2]
[328557932,1717535228465,-500.0,0.00021917,2]
[328557933,1717535228488,-500.0,0.00021917,2]
[328557934,1717535228508,-500.0,0.00021917,2]
[328557935,1717535228527,-500.0,0.00021917,2]
[328557936,1717535228549,-500.0,0.00021917,2]
[328557937,1717535228572,-505.12044019,0.00021917,2]
[328557938,1717535228602,-500.0,0.00021917,2]
[328557939,1717535228624,-500.0,0.00021917,2]
[328557940,1717535228649,-500.0,0.00021917,2]
[328557941,1717535228673,-500.0,0.00021917,2]
[328557942,1717535228693,-500.0,0.00021917,2]
[328557943,1717535228715,-500.0,0.00021917,2]
[328557944,1717535228735,-500.0,0.00021917,2]
[328557945,1717535228757,-500.0,0.00021917,2]
[328557946,1717535228778,-500.0,0.00021917,2]
[328557947,1717535228798,-500.0,0.00021917,2]
[328557948,1717535228822,-500.0,0.00021917,2]
[328557949,1717535228852,-500.0,0.00021917,2]
[328557950,1717535228881,-462.25,0.00021917,2]
[328557951,1717535228905,-500.0,0.00021917,2]
[328557952,1717535228932,-500.0,0.00021917,2]
[328557953,1717535228960,-500.0,0.00021917,2]
[328557954,1717535228987,-616.91,0.00021917,2]
[328557955,1717535229012,-500.0,0.00021917,2]
[328557956,1717535229042,-500.0,0.00021917,2]
[328557957,1717535229070,-500.0,0.00021917,2]
[328557958,1717535229095,-525.9388457,0.00021917,2]
[328557959,1717535229121,-500.0,0.00021917,2]
[328557960,1717535229148,-500.0,0.00021917,2]
[328557961,1717535229173,-500.0,0.00021917,2]
[328557962,1717535229197,-500.0,0.00021917,2]
[328557963,1717535229221,-500.0,0.00021917,2]
[328557964,1717535229245,-500.0,0.00021917,2]
[328557965,1717535229272,-500.0,0.00021917,2]
[328557966,1717535229296,-500.0,0.00021917,2]
[328557967,1717535229323,-2533.62,0.00021917,2]
[328557968,1717535229350,-500.0,0.00021917,2]
[328557969,1717535229375,-521.79,0.00021917,2]
[328557970,1717535229398,-500.0,0.00021917,2]
[328557971,1717535229422,-500.0,0.00021917,2]
[328557972,1717535229448,-808.76,0.00021917,2]
[328557973,1717535229475,-874.62,0.00021917,2]
[328557974,1717535229499,-631.52,0.00021917,2]
[328557975,1717535229521,-500.0,0.00021917,2]
[328557976,1717535229546,-500.0,0.00021917,2]
[328557977,1717535229571,-500.0,0.00021917,2]
[328557978,1717535229595,-500.0,0.00021917,2]
[328557979,1717535229617,-500.0,0.00021917,2]
[328557980,1717535229640,-500.0,0.00021917,2]
[328557981,1717535229665,-994.59,0.00021917,2]
[328557982,1717535229692,-500.0,0.00021917,2]